bitfinex/quotes_SOLUSD_20250401
["timestamp","ask_amount","ask_price","bid_price","bid_amount"]
[1743516003443,0.063,127.8,127.72,20.0]
[1743516003643,0.063,127.8,127.69,6.5591]
[1743516003644,0.063,127.77,127.69,6.5591]
[1743516003841,0.063,127.77,127.66,38.79181043]
[1743516004085,0.063,127.77,127.69,0.14216157]
[1743516004249,38.25091526,127.73,127.66,20.0]
[1743516004455,0.063,127.77,127.67,20.0]
[1743516004687,18.79181043,127.72,127.67,20.0]
[1743516004847,18.79181043,127.72,127.64,9.4307]
[1743516004848,0.063,127.77,127.69,20.0]
[1743516005051,38.25091526,127.71,127.68,20.0]
[1743516005243,0.14216157,127.74,127.64,1.5965]
[1743516005566,38.25091526,127.75,127.65,38.79181043]
[1743516005779,18.64964886,127.76,127.65,0.14216157]
[1743516005955,77.40621392,127.69,127.64,1.5965]
[1743516006148,18.64964886,127.7,127.62,10.33925761]
[1743516006358,20.0,127.64,127.59,0.14216157]
[1743516006556,57.40621392,127.69,127.59,46.771372]
[1743516006868,57.40621392,127.67,127.59,18.933972]
[1743516007072,77.40621392,127.71,127.59,38.933972]
[1743516007249,57.40621392,127.71,127.63,7.8351]
[1743516007452,77.40621392,127.66,127.59,0.14216157]
[1743516007670,20.0,127.66,127.59,18.933972]
[1743516008053,20.0,127.66,127.58,9.4798]
[1743516008054,57.40621392,127.66,127.58,9.4798]
[1743516008253,20.0,127.65,127.59,18.933972]
[1743516008483,20.0,127.65,127.59,0.14216157]
[1743516008779,20.0,127.62,127.58,1.6417]
[1743516009251,57.40621392,127.65,127.58,1.6417]
[1743516009446,57.40621392,127.64,127.58,1.6417]
[1743516009652,7.829,127.73,127.59,18.933972]
[1743516009852,77.40621392,127.64,127.58,1.6417]
[1743516010057,57.40621392,127.68,127.59,0.14216157]
[1743516010346,20.0,127.64,127.58,1.6417]
[1743516010551,57.40621392,127.64,127.58,1.6417]
[1743516010747,57.40621392,127.61,127.56,0.03]
[1743516010964,20.0,127.57,127.56,0.03]
[1743516011146,57.40621392,127.57,127.56,0.03]
[1743516011574,133.74639984,127.57,127.56,0.03]
[1743516011758,20.0,127.54,127.52,3.7]
[1743516011963,96.19802435,127.53,127.52,3.7]
[1743516012152,57.40621392,127.54,127.52,3.7]
[1743516012553,57.40621392,127.57,127.52,3.7]
[1743516012753,57.40621392,127.54,127.52,3.7]
[1743516012962,76.34018592,127.53,127.52,3.7]
[1743516013472,84.18138592,127.53,127.52,3.7]
[1743516013673,141.58759984,127.53,127.52,3.7]
[1743516013971,38.933972,127.49,127.48,0.03]
[1743516014172,96.34018592,127.49,127.48,0.03]
[1743516014350,96.34018592,127.49,127.48,0.0001]
[1743516014552,0.28432314,127.47,127.46,0.03]
[1743516014777,76.34018592,127.47,127.46,0.03]
[1743516014951,133.74639984,127.47,127.46,0.03]
[1743516015270,84.18508592,127.47,127.46,0.03]
[1743516015861,141.59129984,127.47,127.46,0.03]
[1743516016049,141.59129984,127.47,127.43,0.03]
[1743516016254,134.24639984,127.45,127.43,0.03]
[1743516016454,20.0,127.38,127.29,21.85942435]
[1743516016656,20.0,127.38,127.31,30.0]
[1743516016867,57.40621392,127.37,127.31,30.0]
[1743516017070,57.40621392,127.35,127.31,30.0]
[1743516017247,20.0,127.38,127.31,37.8545]
[1743516017452,57.40621392,127.36,127.31,30.0]
[1743516017752,20.0,127.38,127.31,37.8545]
[1743516018055,57.40621392,127.39,127.32,18.79181043]
[1743516018272,0.14216157,127.45,127.34,18.933972]
[1743516018481,0.28432314,127.49,127.38,38.64964886]
[1743516018657,57.40621392,127.47,127.39,0.28432314]
[1743516018857,57.40621392,127.44,127.38,20.0]
[1743516019053,57.40621392,127.46,127.38,20.0]
[1743516019255,0.14216157,127.49,127.4,7.8492]
[1743516019555,57.40621392,127.44,127.39,7.8498]
[1743516019765,57.40621392,127.43,127.39,7.8498]
[1743516019967,57.40621392,127.41,127.35,0.14216157]
[1743516020276,57.40621392,127.4,127.34,18.64964886]
[1743516020479,20.0,127.41,127.33,7.8536]
[1743516020658,65.24941392,127.5,127.34,0.28432314]
[1743516020972,65.24941392,127.5,127.37,0.28432314]
[1743516020973,57.40621392,127.44,127.37,0.28432314]
[1743516021474,57.40621392,127.44,127.39,18.79181043]
[1743516021694,57.40621392,127.43,127.38,7.8505]
[1743516021860,57.40621392,127.45,127.38,7.8505]
[1743516022061,57.40621392,127.39,127.31,20.0]
[1743516022299,57.40621392,127.39,127.29,7.7633]
[1743516022452,57.40621392,127.41,127.32,18.933972]
[1743516022796,18.79181043,127.43,127.31,18.79181043]
[1743516022953,0.14216157,127.42,127.31,18.79181043]
[1743516023158,57.40621392,127.42,127.31,20.14216157]
[1743516023358,18.933972,127.46,127.36,7.8517]
[1743516023561,57.40621392,127.44,127.36,7.8517]
[1743516024361,48.38429178,127.47,127.41,0.14216157]
[1743516024677,48.38429178,127.47,127.43,0.14216157]
[1743516025276,48.38429178,127.47,127.41,6.1792]
[1743516025476,48.38429178,127.47,127.38,1.6474]
[1743516025674,57.40621392,127.43,127.38,1.6474]
[1743516025881,57.40621392,127.4,127.38,1.6474]
[1743516026285,18.64964886,127.43,127.36,233.8315]
[1743516026574,18.64964886,127.46,127.37,0.28432314]
[1743516026762,57.40621392,127.42,127.36,233.8315]
[1743516026967,57.40621392,127.44,127.36,233.8315]
[1743516027179,57.40621392,127.45,127.37,18.933972]
[1743516027364,57.40621392,127.44,127.37,0.28432314]
[1743516027561,7.8456,127.46,127.36,245.98]
[1743516027562,57.40621392,127.42,127.36,225.98]
[1743516027896,57.40621392,127.4,127.36,233.8316]
[1743516028192,57.40621392,127.42,127.36,225.98]
[1743516028358,57.40621392,127.41,127.36,225.98]
[1743516028794,57.40621392,127.42,127.36,233.8314]
[1743516029089,57.40621392,127.37,127.31,0.03]
[1743516029265,18.933972,127.43,127.31,0.03]
[1743516029462,57.40621392,127.37,127.31,0.03]
[1743516029998,57.40621392,127.33,127.31,0.03]
[1743516030207,57.40621392,127.32,127.31,0.03]
[1743516030872,133.74639984,127.32,127.31,0.0001]
[1743516031691,141.60059984,127.32,127.31,0.0001]
[1743516031859,76.34018592,127.32,127.31,0.0001]
[1743516032066,57.40621392,127.32,127.31,0.0001]
[1743516032262,133.74639984,127.32,127.31,0.0001]
[1743516033380,57.40621392,127.26,127.23,1.6664]
[1743516033586,18.64964886,127.28,127.23,1.6664]
[1743516033587,57.40621392,127.25,127.23,1.6664]
[1743516033764,57.40621392,127.26,127.21,226.0]
[1743516033964,11.98421223,127.34,127.22,7.8603]
[1743516034161,0.5,127.28,127.2,226.1]
[1743516034395,57.40621392,127.29,127.21,20.0]
[1743516034604,57.90621392,127.29,127.2,246.1]
[1743516034766,0.5,127.3,127.22,20.0]
[1743516035104,57.90621392,127.3,127.2,246.1]
[1743516035404,0.5,127.3,127.22,20.0]
[1743516035608,0.5,127.3,127.23,7.8597]
[1743516036139,0.5,127.29,127.23,27.5091]
[1743516036302,0.5,127.29,127.24,18.933972]
[1743516036501,0.5,127.29,127.24,0.28432314]
[1743516036806,0.5,127.32,127.24,38.933972]
[1743516037193,0.5,127.35,127.27,0.14216157]
[1743516037371,0.5,127.36,127.3,0.14216157]
[1743516037701,6.1282,127.45,127.35,0.28432314]
[1743516037702,0.5,127.43,127.35,0.28432314]
[1743516037872,0.5,127.44,127.37,0.14216157]
[1743516038073,0.5,127.44,127.37,0.28432314]
[1743516038294,0.063,127.47,127.41,0.14216157]
[1743516038977,0.063,127.47,127.41,0.28432314]
[1743516039289,0.063,127.47,127.45,0.14216157]
[1743516039487,0.063,127.47,127.41,20.0]
[1743516039683,0.063,127.47,127.43,0.28432314]
[1743516039901,0.5,127.54,127.47,0.14216157]
[1743516040219,0.5,127.52,127.47,0.28432314]
[1743516040387,0.5,127.49,127.44,0.14216157]
[1743516040731,0.5,127.49,127.43,0.14216157]
[1743516041029,57.90621392,127.49,127.43,0.14216157]
[1743516041230,57.40621392,127.48,127.43,0.14216157]
[1743516041513,57.90621392,127.48,127.42,7.848]
[1743516041714,0.5,127.48,127.43,0.14216157]
[1743516042020,0.5,127.48,127.4,7.8488]
[1743516042213,57.40621392,127.44,127.4,0.14216157]
[1743516042390,0.5,127.44,127.4,0.14216157]
[1743516042586,57.90621392,127.43,127.38,7.8503]
[1743516042816,0.5,127.42,127.39,226.04]
[1743516043120,57.40621392,127.42,127.37,0.14216157]
[1743516043300,57.90621392,127.42,127.38,226.04]
[1743516043486,0.5,127.41,127.38,226.04]
[1743516043787,57.40621392,127.4,127.38,226.04]
[1743516043986,0.5,127.37,127.33,0.14216157]
[1743516044187,57.90621392,127.36,127.33,226.04]
[1743516044413,0.5,127.37,127.33,226.04]
[1743516044915,0.5,127.36,127.33,226.04]
[1743516045102,57.90621392,127.35,127.33,226.04]
[1743516045310,57.40621392,127.36,127.33,226.04]
[1743516045516,0.5,127.37,127.33,226.04]
[1743516045697,0.5,127.38,127.34,7.8529]
[1743516046612,57.90621392,127.37,127.33,233.8934]
[1743516046807,57.40621392,127.36,127.33,233.8934]
[1743516047015,57.90621392,127.37,127.33,233.8934]
[1743516047191,0.5,127.39,127.34,0.14216157]
[1743516047405,0.5,127.4,127.34,38.933972]
[1743516047810,0.5,127.4,127.36,0.14216157]
[1743516048410,57.40621392,127.39,127.35,7.8523]
[1743516048718,57.40621392,127.36,127.33,226.04]
[1743516049039,57.40621392,127.38,127.33,233.8934]
[1743516049234,57.40621392,127.39,127.33,233.8934]
[1743516049432,57.40621392,127.36,127.33,226.04]
[1743516049618,57.40621392,127.35,127.33,226.04]
[1743516049818,57.40621392,127.36,127.33,226.04]
[1743516050218,57.40621392,127.36,127.34,0.03]
[1743516050731,57.40621392,127.35,127.34,0.03]
[1743516050943,57.40621392,127.36,127.34,0.03]
[1743516051346,57.40621392,127.37,127.34,0.03]
[1743516052134,57.40621392,127.38,127.34,0.03]
[1743516052842,26.783372,127.4,127.34,0.03]
[1743516053149,57.40621392,127.35,127.34,0.03]
[1743516053509,76.34018592,127.35,127.34,0.03]
[1743516053945,84.19248592,127.35,127.34,0.03]
[1743516054129,84.19248592,127.35,127.25,226.1]
[1743516054130,20.14216157,127.31,127.25,226.1]
[1743516054445,77.40621392,127.29,127.25,233.9583]
[1743516055254,7.99446157,127.35,127.25,233.9583]
[1743516055436,57.40621392,127.33,127.25,233.9583]
[1743516055963,77.40621392,127.31,127.25,253.6046]
[1743516056256,57.40621392,127.3,127.25,233.9583]
[1743516056625,20.0,127.31,127.25,233.9583]
[1743516056825,20.0,127.31,127.25,253.6046]
[1743516057937,77.40621392,127.31,127.25,253.6046]
[1743516058138,20.0,127.31,127.25,253.6046]
[1743516058343,57.40621392,127.32,127.25,253.6046]
[1743516058574,41.333,127.41,127.26,18.933972]
[1743516058575,57.988795,127.36,127.26,18.933972]
[1743516058857,57.40621392,127.34,127.26,18.933972]
[1743516059034,57.40621392,127.33,127.26,0.28432314]
[1743516059641,57.40621392,127.32,127.26,0.28432314]
[1743516059860,57.40621392,127.33,127.27,27.5005]
[1743516060031,57.40621392,127.34,127.27,27.5005]
[1743516060360,57.40621392,127.29,127.25,233.9584]
[1743516060538,76.05586278,127.3,127.23,226.16]
[1743516060734,76.05586278,127.3,127.24,30.0]
[1743516060933,69.42765595,127.31,127.24,30.0]
[1743516061439,76.05586278,127.3,127.24,30.0]
[1743516061761,69.42765595,127.31,127.24,30.0]
[1743516062152,57.40621392,127.29,127.25,7.8585]
[1743516062459,0.14216157,127.31,127.25,7.8585]
[1743516062765,57.40621392,127.3,127.25,7.8585]
[1743516063061,57.40621392,127.3,127.26,0.03]
[1743516063239,12.02144203,127.33,127.26,0.03]
[1743516063452,57.40621392,127.31,127.26,0.03]
[1743516063647,18.64964886,127.32,127.26,0.03]
[1743516063862,20.0,127.31,127.26,0.03]
[1743516064059,12.02144203,127.33,127.26,0.17216157]
[1743516064375,12.02144203,127.33,127.26,38.963972]
[1743516064967,12.02144203,127.35,127.29,0.28432314]
[1743516065129,12.02144203,127.35,127.26,0.03]
[1743516065130,0.14216157,127.31,127.26,0.03]
[1743516065332,57.40621392,127.28,127.26,0.03]
[1743516065532,57.40621392,127.3,127.26,0.03]
[1743516065761,57.40621392,127.31,127.26,0.03]
[1743516066130,57.40621392,127.33,127.26,234.0679]
[1743516066340,57.40621392,127.36,127.27,1.78602314]
[1743516066536,57.40621392,127.36,127.27,20.435672]
[1743516066975,57.40621392,127.35,127.27,1.78602314]
[1743516067169,57.40621392,127.3,127.26,226.21]
[1743516067643,57.40621392,127.28,127.26,0.03]
[1743516068249,76.05586278,127.27,127.26,0.03]
[1743516068451,76.34018592,127.27,127.26,0.03]
[1743516068764,57.40621392,127.22,127.21,0.03]
[1743516069534,76.19802435,127.22,127.21,0.03]
[1743516069766,76.05586278,127.22,127.21,30.03]
[1743516069969,18.79181043,127.22,127.21,30.03]
[1743516070153,76.19802435,127.22,127.21,0.03]
[1743516070666,18.79181043,127.21,127.18,0.03]
[1743516070970,96.34018592,127.19,127.18,0.03]
[1743516071535,0.14216157,127.14,127.13,30.0]
[1743516071761,133.60423827,127.14,127.13,30.0]
[1743516072157,76.19802435,127.14,127.13,30.0]
[1743516072558,20.0,127.16,127.13,30.0]
[1743516072880,12.17280122,127.15,127.13,7.8659]
[1743516073242,12.17280122,127.15,127.11,19.6677]
[1743516073467,12.17280122,127.15,127.1,20.0]
[1743516073693,12.17280122,127.15,127.09,18.933972]
[1743516073694,1.22e-06,127.15,127.14,0.14216157]
[1743516073962,10.71290762,127.21,127.15,0.28432314]
[1743516074269,57.40621392,127.2,127.17,7.8634]
[1743516074564,57.40621392,127.18,127.16,234.1839]
[1743516074862,20.0,127.2,127.16,234.1841]
[1743516075158,57.40621392,127.17,127.16,234.1841]
[1743516075457,57.40621392,127.17,127.15,7.8645]
[1743516076362,57.40621392,127.17,127.14,0.03]
[1743516076855,57.40621392,127.18,127.14,0.03]
[1743516077049,57.40621392,127.17,127.14,0.03]
[1743516077253,57.40621392,127.15,127.14,0.03]
[1743516081048,76.05586278,127.15,127.14,0.03]
[1743516081250,76.19802435,127.15,127.14,0.03]
[1743516081672,76.05586278,127.15,127.14,0.03]
[1743516082469,76.19802435,127.15,127.14,0.03]
[1743516082781,57.40621392,127.15,127.14,0.03]
[1743516082969,76.05586278,127.15,127.14,0.03]
[1743516083264,57.40621392,127.15,127.14,0.03]
[1743516084164,20.0,127.16,127.14,0.03]
[1743516084370,77.40621392,127.16,127.14,0.03]
[1743516084666,57.40621392,127.15,127.14,0.03]
[1743516084971,57.40621392,127.16,127.14,0.03]
[1743516085359,57.40621392,127.15,127.14,0.03]
[1743516086071,76.19802435,127.15,127.14,0.03]
[1743516086454,84.06272435,127.15,127.14,0.03]
[1743516086858,76.19802435,127.15,127.14,0.03]
[1743516087073,57.40621392,127.15,127.14,0.03]
[1743516087572,76.05586278,127.15,127.14,0.03]
[1743516087776,65.27091392,127.15,127.14,0.03]
[1743516087984,141.61109984,127.15,127.14,0.03]
[1743516088476,7.8678,127.1,127.03,7.8721]
[1743516088703,57.40621392,127.05,127.02,7.8727]
[1743516088875,57.40621392,127.04,127.02,7.8727]
[1743516089083,57.40621392,127.05,127.02,7.8727]
[1743516089263,57.40621392,127.03,127.01,0.03]
[1743516089468,57.40621392,127.02,127.01,0.03]
[1743516089776,76.05586278,127.02,127.01,0.03]
[1743516089968,18.64964886,127.04,127.01,0.03]
[1743516090181,57.40621392,127.02,127.01,0.03]
[1743516090574,57.40621392,127.04,127.01,0.03]
[1743516090752,57.40621392,127.06,127.01,0.03]
[1743516091093,57.40621392,127.03,127.01,0.03]
[1743516091295,57.40621392,127.02,127.01,0.03]
[1743516091500,38.64964886,127.04,127.01,0.03]
[1743516091782,57.40621392,127.03,127.01,0.03]
[1743516092254,57.40621392,127.02,127.01,0.03]
[1743516092458,57.40621392,127.08,127.01,0.03]
[1743516092459,18.64964886,127.08,127.01,0.03]
[1743516092659,57.40621392,127.08,127.01,0.03]
[1743516092969,57.40621392,127.08,127.02,6.0574]
[1743516093170,57.40621392,127.03,127.01,0.03]
[1743516093376,57.40621392,127.02,127.01,0.03]
[1743516094860,18.79181043,127.07,127.01,0.03]
[1743516095062,57.40621392,127.03,127.01,0.03]
[1743516095257,57.40621392,127.04,127.01,0.03]
[1743516095567,57.40621392,127.06,127.01,0.03]
[1743516096598,57.40621392,127.03,127.01,0.03]
[1743516096887,57.40621392,127.04,127.01,0.03]
[1743516097261,7.8667,127.12,127.01,0.03]
[1743516097463,57.40621392,127.07,127.01,0.03]
[1743516097685,57.40621392,127.06,127.01,0.03]
[1743516097877,0.28432314,127.11,127.01,0.03]
[1743516098184,57.40621392,127.04,127.01,0.03]
[1743516098980,57.40621392,127.03,127.01,0.03]
[1743516099181,57.40621392,127.04,127.01,0.03]
[1743516100366,57.40621392,127.06,127.01,0.03]
[1743516100586,57.40621392,127.05,127.01,0.03]
[1743516101189,57.40621392,127.06,127.01,0.03]
[1743516101795,57.40621392,127.07,127.01,0.03]
[1743516102093,57.40621392,127.06,127.01,0.03]
[1743516102284,57.40621392,127.07,127.01,0.03]
[1743516102481,7.8661,127.13,127.01,0.31432314]
[1743516102789,57.40621392,127.09,127.01,0.31432314]
[1743516103084,18.64964886,127.13,127.01,0.31432314]
[1743516103085,57.40621392,127.08,127.02,27.5546]
[1743516103289,57.40621392,127.06,127.02,27.5546]
[1743516103679,57.40621392,127.04,127.02,7.8727]
[1743516104173,57.40621392,127.05,127.02,7.8727]
[1743516104366,18.64964886,127.09,127.02,7.8727]
[1743516104578,18.64964886,127.09,127.02,27.5546]
[1743516104906,57.40621392,127.03,127.01,0.03]
[1743516105067,57.40621392,127.04,127.01,0.03]
[1743516105268,57.40621392,127.06,127.01,0.03]
[1743516105763,18.64964886,127.08,127.01,0.03]
[1743516105764,57.40621392,127.05,127.01,0.03]
[1743516106577,57.40621392,127.03,127.01,0.03]
[1743516106786,0.14216157,127.07,127.01,0.03]
[1743516107004,57.40621392,127.04,127.01,0.03]
[1743516107468,57.40621392,127.05,127.01,0.03]
[1743516107670,18.64964886,127.08,127.01,0.03]
[1743516107875,57.40621392,127.07,127.01,0.03]
[1743516108110,57.40621392,127.08,127.01,0.03]
[1743516108276,57.40621392,127.07,127.01,0.03]
[1743516108610,57.40621392,127.06,127.01,0.03]
[1743516108989,57.40621392,127.04,127.01,0.03]
[1743516109170,57.40621392,127.03,127.01,0.03]
[1743516109992,114.81242784,127.02,127.01,0.03]
[1743516110299,133.4620767,127.02,127.01,0.03]
[1743516110886,133.60423827,127.02,127.01,0.03]
[1743516111088,141.47693827,127.02,127.01,0.03]
[1743516111300,141.61909984,127.02,127.01,0.03]
[1743516111690,141.61909984,127.02,126.94,2.7802373]
[1743516111691,0.14216157,126.97,126.94,2.7802373]
[1743516111890,82.53786278,126.95,126.94,2.7802373]
[1743516112103,82.68002435,126.95,126.94,2.7802373]
[1743516112396,82.82218592,126.95,126.94,2.7802373]
[1743516113079,90.69928592,126.95,126.94,2.7802373]
[1743516113400,82.82218592,126.95,126.94,2.7802373]
[1743516113719,82.68002435,126.95,126.94,2.7802373]
[1743516113886,76.19802435,126.95,126.94,2.7802373]
[1743516114281,57.40621392,126.95,126.94,2.7802373]
[1743516114477,76.05586278,126.95,126.94,2.7802373]
[1743516114877,57.40621392,126.95,126.94,2.7802373]
[1743516115085,84.21728592,126.95,126.94,2.7802373]
[1743516116506,20.14216157,126.91,126.88,0.03]
[1743516116716,57.54837549,126.89,126.88,0.03]
[1743516117188,7.8802,126.9,126.8,27.6024]
[1743516117392,57.40621392,126.86,126.8,27.6024]
[1743516117597,0.14216157,126.89,126.8,7.8864]
[1743516117598,57.40621392,126.84,126.8,7.8864]
[1743516117815,18.64964886,126.89,126.8,7.8864]
[1743516118002,18.64964886,126.89,126.8,27.6024]
[1743516118003,57.40621392,126.83,126.8,27.6024]
[1743516118217,20.0,126.86,126.8,7.8864]
[1743516118507,57.40621392,126.81,126.77,7.8883]
[1743516119015,57.40621392,126.79,126.77,7.8883]
[1743516119510,57.40621392,126.8,126.77,7.8883]
[1743516120117,18.64964886,126.83,126.77,7.8883]
[1743516120118,57.40621392,126.81,126.77,27.609]
[1743516120297,18.64964886,126.83,126.77,7.8883]
[1743516120498,57.40621392,126.78,126.75,7.8895]
[1743516121084,57.40621392,126.76,126.73,7.8907]
[1743516121383,57.40621392,126.74,126.7,7.8926]
[1743516121583,0.14216157,126.76,126.7,7.8926]
[1743516122192,57.40621392,126.73,126.7,7.8926]
[1743516122389,57.40621392,126.71,126.69,2.7802373]
[1743516122608,18.64964886,126.74,126.69,10.6733373]
[1743516122828,57.40621392,126.73,126.69,10.6733373]
[1743516123044,57.40621392,126.73,126.69,30.4065373]
[1743516123213,57.40621392,126.71,126.69,10.6733373]
[1743516123419,57.40621392,126.7,126.69,2.7802373]
[1743516124343,76.34018592,126.7,126.69,2.7802373]
[1743516125211,84.23278592,126.7,126.69,2.7802373]
[1743516125532,76.19802435,126.7,126.69,2.7802373]
[1743516125718,57.40621392,126.7,126.69,2.7802373]
[1743516125916,57.40621392,126.71,126.69,10.6734373]
[1743516126117,0.28432314,126.77,126.69,30.4066373]
[1743516126432,57.40621392,126.78,126.69,30.4066373]
[1743516126732,57.40621392,126.74,126.69,30.4366373]
[1743516126923,0.28432314,126.77,126.69,30.4366373]
[1743516127116,18.933972,126.77,126.69,30.4366373]
[1743516127443,57.40621392,126.78,126.69,30.4366373]
[1743516127617,57.40621392,126.74,126.69,30.4366373]
[1743516127934,57.40621392,126.72,126.69,30.4366373]
[1743516128129,57.40621392,126.71,126.69,30.4366373]
[1743516128431,57.40621392,126.71,126.69,10.7034373]
[1743516128629,57.40621392,126.7,126.69,2.7802373]
[1743516128832,57.40621392,126.7,126.69,10.6734373]
[1743516129232,57.40621392,126.7,126.69,2.7802373]
[1743516129433,57.40621392,126.7,126.69,10.6734373]
[1743516130432,38.79181043,126.74,126.69,10.6734373]
[1743516130632,57.40621392,126.7,126.69,10.6734373]
[1743516130838,76.05586278,126.7,126.69,2.7802373]
[1743516131021,57.40621392,126.7,126.69,2.7802373]
[1743516131229,76.19802435,126.7,126.69,2.7802373]
[1743516131427,84.23278592,126.7,126.69,2.7802373]
[1743516131735,76.34018592,126.7,126.69,2.7802373]
[1743516132139,84.23278592,126.7,126.69,2.7802373]
[1743516132318,84.23278592,126.7,126.6,19.7457]
[1743516132319,0.14216157,126.68,126.61,7.8977]
[1743516132519,57.40621392,126.64,126.61,7.8977]
[1743516132716,57.40621392,126.67,126.61,7.8977]
[1743516133115,8.03416157,126.71,126.61,7.8977]
[1743516133116,57.40621392,126.68,126.61,19.7456]
[1743516133341,57.40621392,126.72,126.61,19.7456]
[1743516133558,17.6096,126.75,126.62,20.14216157]
[1743516133559,57.40621392,126.71,126.62,20.14216157]
[1743516133847,0.28432314,126.77,126.63,9.72]
[1743516134035,57.40621392,126.73,126.64,20.14216157]
[1743516134212,57.40621392,126.73,126.63,9.72]
[1743516134618,57.40621392,126.72,126.63,9.72]
[1743516134916,26.68011043,126.77,126.63,9.72]
[1743516135119,57.40621392,126.72,126.63,9.72]
[1743516135322,1.05135934,126.82,126.65,20.64216157]
[1743516135634,57.40621392,126.76,126.66,0.14216157]
[1743516135837,57.40621392,126.71,126.64,67.1191]
[1743516136040,57.40621392,126.7,126.64,67.1191]
[1743516136421,57.40621392,126.7,126.64,27.6372]
[1743516136830,57.40621392,126.78,126.64,27.6372]
[1743516137140,0.5,126.81,126.65,0.78432314]
[1743516137141,57.40621392,126.76,126.65,0.78432314]
[1743516137334,57.40621392,126.77,126.68,20.28432314]
[1743516137534,0.28432314,126.82,126.69,237.02]
[1743516137731,57.40621392,126.74,126.69,237.02]
[1743516137941,57.40621392,126.75,126.69,237.02]
[1743516138128,57.40621392,126.73,126.69,237.02]
[1743516138327,57.40621392,126.72,126.67,7.8945]
[1743516138527,18.64964886,126.77,126.67,7.8945]
[1743516138733,57.40621392,126.72,126.67,7.8945]
[1743516139323,57.40621392,126.72,126.65,27.6351]
[1743516139644,57.40621392,126.73,126.65,67.1139]
[1743516139843,18.64964886,126.77,126.65,67.1139]
[1743516140026,57.40621392,126.75,126.65,106.5927]
[1743516140227,18.64964886,126.79,126.66,20.28432314]
[1743516140438,57.40621392,126.76,126.66,20.28432314]
[1743516140843,57.40621392,126.78,126.66,20.28432314]
[1743516141044,18.64964886,126.8,126.69,0.03]
[1743516141284,57.40621392,126.75,126.71,7.892]
[1743516141447,57.40621392,126.76,126.71,7.892]
[1743516141629,8.02766157,126.82,126.71,27.622]
[1743516141830,57.40621392,126.78,126.71,27.622]
[1743516142247,0.063,126.83,126.71,55.247]
[1743516142467,0.063,126.83,126.72,0.28432314]
[1743516142626,0.063,126.83,126.74,0.28432314]
[1743516142830,57.46921392,126.83,126.74,0.28432314]
[1743516143141,0.063,126.83,126.74,0.28432314]
[1743516143333,0.063,126.83,126.78,27.6067]
[1743516143735,0.063,126.83,126.78,67.045]
[1743516144127,0.063,126.83,126.79,0.28432314]
[1743516144339,0.063,126.83,126.8,236.96]
[1743516145334,57.40621392,126.82,126.77,7.888]
[1743516145545,0.063,126.83,126.77,7.888]
[1743516145735,57.40621392,126.82,126.77,7.888]
[1743516146046,57.46921392,126.83,126.77,7.888]
[1743516146233,57.40621392,126.81,126.76,7.8887]
[1743516146437,57.40621392,126.82,126.76,7.8887]
[1743516146942,57.40621392,126.79,126.75,17.6495]
[1743516147243,18.71264886,126.83,126.75,17.6495]
[1743516147441,57.46921392,126.83,126.75,37.3733]
[1743516147959,0.063,126.83,126.75,37.3733]
[1743516148139,57.46921392,126.83,126.75,37.3733]
[1743516148337,57.40621392,126.82,126.75,37.3733]
[1743516148653,57.46921392,126.83,126.75,37.3733]
[1743516148854,57.40621392,126.82,126.75,37.3733]
[1743516149153,57.46921392,126.83,126.75,37.3733]
[1743516149351,0.063,126.83,126.75,76.821]
[1743516149553,57.40621392,126.82,126.75,37.3733]
[1743516149929,57.40621392,126.78,126.75,7.8895]
[1743516150134,57.40621392,126.78,126.75,17.7095]
[1743516150552,57.40621392,126.79,126.75,17.7095]
[1743516150745,18.71264886,126.83,126.75,37.4333]
[1743516150936,57.40621392,126.79,126.75,17.7095]
[1743516152252,57.40621392,126.8,126.75,37.4333]
[1743516152461,57.46921392,126.83,126.75,37.4333]